bitfinex/quotes_SOLUSD_20260202
["timestamp","ask_amount","ask_price","bid_price","bid_amount"]
[1769998430286,9.28418005,101.82,101.79,9.82414775]
[1769998430487,22.94559715,101.83,101.79,9.82414775]
[1769998430690,9.28418005,101.83,101.8,3.88794846]
[1769998430874,19.10352457,101.84,101.8,3.88794846]
[1769998431075,9.28418005,101.84,101.8,3.88794846]
[1769998431291,19.10305748,101.85,101.8,3.88794846]
[1769998431585,22.94363662,101.85,101.81,3.88794846]
[1769998431884,9.28418005,101.86,101.82,3.88794846]
[1769998432291,9.28418005,101.86,101.83,9.82028871]
[1769998432671,9.28418005,101.86,101.82,13.70872706]
[1769998433672,9.48418005,101.87,101.83,3.88794846]
[1769998433988,1e-08,101.87,101.86,3.88794846]
[1769998434288,1e-08,101.87,101.86,13.17212851]
[1769998434491,1e-08,101.87,101.86,13.70534488]
[1769998435171,1e-08,101.87,101.86,22.98952493]
[1769998435889,0.2,101.89,101.87,3.88794846]
[1769998436473,9.48418005,101.89,101.87,3.88794846]
[1769998437194,0.2,101.89,101.87,3.88794846]
[1769998437582,0.2,101.89,101.87,13.70404444]
[1769998437785,0.2,101.89,101.87,9.81609598]
[1769998439080,0.2,101.89,101.86,13.70486928]
[1769998439396,0.2,101.89,101.86,22.98904933]
[1769998440002,5.28006958,101.96,101.89,3.88794846]
[1769998440292,5.28006958,101.96,101.87,9.28418005]
[1769998440293,24.37226511,101.96,101.91,3.88794846]
[1769998440499,13.32475919,101.96,101.92,9.81161695]
[1769998440696,9.28418005,101.98,101.94,3.88794846]
[1769998440898,13.12475919,101.96,101.92,9.81161695]
[1769998441198,9.28418005,101.93,101.91,3.88794846]
[1769998441378,9.28418005,101.95,101.91,13.70007868]
[1769998441574,9.28418005,101.97,101.92,3.88794846]
[1769998441796,13.12475919,101.97,101.92,3.88794846]
[1769998441996,9.28418005,101.94,101.91,9.81213022]
[1769998442198,13.12475919,101.92,101.88,31.16794846]
[1769998442401,9.28418005,101.89,101.86,13.70474547]
[1769998443194,13.65368682,101.91,101.86,13.70474547]
[1769998443499,9.28418005,101.89,101.86,13.70474547]
[1769998443984,9.28418005,101.88,101.86,13.70474547]
[1769998444297,9.28418005,101.89,101.86,13.70474547]
[1769998444504,9.28418005,101.9,101.86,38.24823653]
[1769998444702,9.28418005,101.91,101.87,3.88794846]
[1769998445006,3.84057914,101.94,101.89,3.88794846]
[1769998445203,13.64967187,101.95,101.9,3.88794846]
[1769998445389,9.28418005,101.94,101.9,3.88794846]
[1769998445584,13.12475919,101.94,101.9,3.88794846]
[1769998446198,9.28418005,101.95,101.91,3.88794846]
[1769998446405,13.12475919,101.93,101.9,9.81316099]
[1769998446588,9.28418005,101.91,101.88,13.70289699]
[1769998446786,9.28418005,101.9,101.87,13.7040783]
[1769998446992,9.28418005,101.89,101.87,13.7040783]
[1769998447303,9.28418005,101.91,101.88,9.81524136]
[1769998447507,9.28418005,101.9,101.87,13.70398303]
[1769998447709,9.28418005,101.9,101.88,9.81535067]
[1769998447894,9.28418005,101.89,101.85,3.88877981]
[1769998448090,38.60585435,101.95,101.85,3.88877981]
[1769998448091,3.79623773,101.91,101.85,13.70712637]
[1769998448296,9.28418005,101.88,101.85,13.70712637]
[1769998448996,9.28418005,101.86,101.83,3.88877981]
[1769998449299,9.28418005,101.86,101.84,9.81907779]
[1769998449606,9.28418005,101.88,101.85,9.81836033]
[1769998451286,9.28418005,101.87,101.85,9.81836033]
[1769998452091,13.61119575,101.89,101.85,9.81836033]
[1769998452092,9.28418005,101.88,101.85,9.81836033]
[1769998452690,9.28418005,101.86,101.84,9.81887435]
[1769998452891,9.28418005,101.85,101.81,13.71049516]
[1769998453092,53.34060187,101.91,101.81,13.71049516]
[1769998453093,3.79623773,101.89,101.84,3.88877981]
[1769998453287,3.79623773,101.93,101.87,3.88877981]
[1769998453500,9.28418005,101.92,101.88,3.88877981]
[1769998453696,9.28418005,101.94,101.9,3.88877981]
[1769998453900,9.28418005,101.95,101.92,3.88877981]
[1769998454211,9.28418005,101.95,101.91,3.88877981]
[1769998454603,13.08041778,101.94,101.89,31.14877981]
[1769998454926,13.08041778,101.94,101.85,9.63613273]
[1769998454927,9.28418005,101.92,101.87,37.7134052]
[1769998455206,9.28418005,101.92,101.89,9.81426892]
[1769998455609,9.28418005,101.92,101.88,13.70388268]
[1769998455816,13.60691215,101.93,101.87,9.81595374]
[1769998455817,13.08041778,101.91,101.87,9.81595374]
[1769998456111,13.08041778,101.91,101.86,37.71481818]
[1769998456112,13.08041778,101.91,101.86,13.17295986]
[1769998456504,13.08041778,101.91,101.87,9.81584987]
[1769998457098,22.89322947,101.91,101.87,9.81584987]
[1769998458216,13.08041778,101.9,101.86,13.70573922]
[1769998458408,22.89322947,101.91,101.86,22.98991927]
[1769998458598,9.28418005,101.91,101.87,3.88877981]
[1769998458804,13.60733361,101.93,101.89,9.81450583]
[1769998458993,22.89151366,101.93,101.89,9.81450583]
[1769998459699,17.88066795,101.95,101.9,3.88877981]
[1769998459900,17.88066795,101.95,101.89,47.52373028]
[1769998459901,13.08041778,101.94,101.89,47.52373028]
[1769998460296,13.08041778,101.94,101.9,13.17295986]
[1769998460625,13.08041778,101.94,101.9,3.88877981]
[1769998460834,22.89205732,101.92,101.88,13.70377977]
[1769998460998,9.28418005,101.9,101.86,13.7054588]
[1769998461198,9.28418005,101.89,101.86,13.7054588]
[1769998461423,13.08041778,101.91,101.86,37.71588257]
[1769998461627,9.28418005,101.89,101.85,3.88877981]
[1769998461925,13.08041778,101.9,101.86,13.70566055]
[1769998462106,13.08041778,101.9,101.87,9.8162353]
[1769998462511,9.28418005,101.89,101.86,13.70573037]
[1769998462705,13.08041778,101.9,101.86,13.70573037]
[1769998462907,13.08041778,101.9,101.87,9.81628342]
[1769998463302,3.79623773,101.9,101.87,9.81628342]
[1769998463498,9.28418005,101.9,101.85,9.28418005]
[1769998463698,9.28418005,101.87,101.84,9.81875911]
[1769998463919,13.08041778,101.85,101.81,3.88877981]
[1769998464130,9.28418005,101.83,101.79,3.88877981]
[1769998464300,9.28418005,101.84,101.81,9.82174121]
[1769998464506,9.28418005,101.83,101.81,9.82174121]
[1769998465411,9.28418005,101.84,101.81,9.82174121]
[1769998465608,9.28418005,101.83,101.8,13.71152457]
[1769998467831,9.28418005,101.84,101.8,13.71152457]
[1769998468133,3.79623773,101.9,101.84,3.88877981]
[1769998468339,13.08041778,101.9,101.85,3.88877981]
[1769998468538,13.08041778,101.9,101.86,9.28418005]
[1769998468702,13.08041778,101.9,101.85,13.17295986]
[1769998469128,19.09982102,101.88,101.84,9.81932443]
[1769998469300,9.28418005,101.88,101.84,13.70810424]
[1769998470336,9.28418005,101.87,101.83,13.70864222]
[1769998470627,9.28418005,101.87,101.83,22.99282227]
[1769998472615,13.08041778,101.87,101.83,22.99282227]
[1769998473225,13.08041778,101.87,101.83,13.70864222]
[1769998473427,9.28418005,101.86,101.83,9.81986241]
[1769998473615,9.28418005,101.85,101.83,9.81986241]
[1769998473825,9.28418005,101.86,101.83,13.70864222]
[1769998474439,16.51807861,101.87,101.83,13.70864222]
[1769998474744,9.28418005,101.86,101.83,3.88877981]
[1769998475915,9.28418005,101.86,101.83,13.70902915]
[1769998477530,9.28418005,101.86,101.83,9.82024934]
[1769998477731,9.28418005,101.86,101.82,13.55601761]
[1769998477926,19.10173567,101.86,101.82,13.55601761]
[1769998478332,9.28418005,101.86,101.82,22.84019766]
[1769998478739,12.72184088,101.87,101.83,3.73476442]
[1769998479757,12.72184088,101.87,101.84,9.81932443]
[1769998480039,16.35339936,101.87,101.84,9.81932443]
[1769998480243,26.16986774,101.87,101.83,13.55457025]
[1769998480439,16.35339936,101.87,101.83,22.8387503]
[1769998480747,12.91573853,101.87,101.83,47.38947209]
[1769998480944,22.73229278,101.87,101.83,13.55457025]
[1769998481320,12.91573853,101.87,101.83,13.55457025]
[1769998481527,9.28418005,101.88,101.85,3.73476442]
[1769998481843,22.73081705,101.89,101.85,13.55241132]
[1769998482044,22.72981187,101.9,101.86,3.73476442]
[1769998482428,19.09825339,101.9,101.86,3.73476442]
[1769998482739,22.72981187,101.9,101.86,3.73476442]
[1769998482943,12.91573853,101.92,101.87,13.01894447]
[1769998483137,9.28418005,101.92,101.88,3.73476442]
[1769998483331,19.09541674,101.93,101.89,13.01894447]
[1769998483530,22.72697522,101.93,101.89,3.73476442]
[1769998484546,22.72697522,101.93,101.87,9.81598085]
[1769998484547,3.63155848,101.91,101.87,9.81598085]
[1769998484737,34.33787261,101.93,101.87,13.55074527]
[1769998484738,9.26047694,101.9,101.87,13.55074527]
[1769998485043,34.33787261,101.93,101.89,19.07470472]
[1769998485044,12.89203542,101.93,101.89,19.07470472]
[1769998485237,9.26047694,101.92,101.89,13.5489922]
[1769998485429,9.26047694,101.92,101.89,9.81422778]
[1769998485630,9.26047694,101.92,101.89,13.5489922]
[1769998486032,12.89203542,101.93,101.89,13.5489922]
[1769998486232,9.26047694,101.92,101.89,13.5489922]
[1769998486441,9.26047694,101.94,101.9,12.91246274]
[1769998486640,22.78237099,101.95,101.9,12.91246274]
[1769998487354,9.26047694,101.94,101.9,12.91246274]
[1769998487753,9.26047694,101.95,101.91,3.6519858]
[1769998488246,9.26047694,101.95,101.91,13.46372544]
[1769998488452,9.26047694,101.95,101.91,22.72420238]
[1769998488652,12.97311682,101.95,101.91,22.72420238]
[1769998488848,19.06871903,101.96,101.92,3.6519858]
[1769998489154,12.97311682,101.95,101.91,9.81173964]
[1769998489355,12.97311682,101.95,101.91,13.46372544]
[1769998489856,12.97311682,101.93,101.89,3.6519858]
[1769998490147,12.97311682,101.93,101.89,13.4656608]
[1769998490452,9.26047694,101.93,101.89,13.4656608]
[1769998490650,9.26047694,101.92,101.89,13.4656608]
[1769998491031,19.07117563,101.93,101.9,3.6519858]
[1769998491243,12.97311682,101.94,101.9,12.91246274]
[1769998491454,22.78290268,101.94,101.9,3.6519858]
[1769998492359,9.26047694,101.93,101.9,3.6519858]
[1769998492856,12.97311682,101.93,101.89,13.4656608]
[1769998493038,12.97311682,101.93,101.9,9.8135031]
[1769998493854,9.80890296,101.95,101.92,3.6519858]
[1769998494054,12.97311682,101.94,101.9,13.4654889]
[1769998494658,22.78332015,101.94,101.9,13.4654889]
[1769998495843,9.26047694,101.93,101.9,3.6519858]
[1769998496044,9.26047694,101.92,101.88,13.46693893]
[1769998496247,9.26047694,101.9,101.87,3.6519858]
[1769998496759,12.97311682,101.89,101.85,13.46949812]
[1769998497141,9.26047694,101.88,101.85,13.46949812]
[1769998497341,9.26047694,101.87,101.84,13.4706037]
[1769998497554,12.97311682,101.88,101.85,9.81818943]
[1769998497764,5.11226342,101.99,101.88,3.6519858]
[1769998497943,9.26047694,101.95,101.9,3.6519858]
[1769998498142,9.26047694,101.94,101.9,3.6519858]
[1769998498360,12.97311682,101.94,101.9,3.6519858]
[1769998498546,3.71263988,101.94,101.9,12.91246274]
[1769998498865,12.97311682,101.94,101.9,3.6519858]
[1769998499246,3.71263988,101.94,101.9,12.91246274]
[1769998499640,12.97311682,101.94,101.9,3.6519858]
[1769998500043,22.78302107,101.94,101.9,13.46528461]
[1769998500244,9.26047694,101.95,101.91,3.6519858]
[1769998500439,3.71263988,101.96,101.92,12.91246274]
[1769998500638,9.80805465,101.96,101.9,61.60715553]
[1769998500833,22.78117147,101.96,101.92,3.6519858]
[1769998501240,3.71263988,101.95,101.91,12.91246274]
[1769998501441,12.97311682,101.95,101.91,3.6519858]
[1769998501643,12.97311682,101.93,101.88,22.7274745]
[1769998501851,12.97311682,101.93,101.89,13.46633922]
[1769998502043,3.71263988,101.93,101.89,12.91246274]
[1769998502445,3.71263988,101.93,101.89,3.6519858]
[1769998502446,22.78465964,101.93,101.89,3.6519858]
[1769998502660,22.78465964,101.93,101.89,13.46635137]
[1769998502863,3.71263988,101.93,101.89,22.72682831]
[1769998503069,13.52340673,101.93,101.89,22.72682831]
[1769998503358,12.97311682,101.91,101.87,22.72824937]
[1769998503563,9.26047694,101.91,101.88,3.6519858]
[1769998503769,9.26047694,101.91,101.88,13.46736435]
[1769998504058,19.07062705,101.94,101.9,3.6519858]
[1769998504242,22.78326693,101.94,101.9,3.6519858]
[1769998504642,22.78326693,101.94,101.89,22.72667198]
[1769998505243,22.78326693,101.94,101.9,9.81342384]
[1769998505440,3.71263988,101.94,101.9,22.72588658]
[1769998505641,3.71263988,101.99,101.93,3.6519858]
[1769998505835,3.71263988,101.99,101.95,12.91246274]
[1769998506142,0.2,102.0,101.96,3.6519858]
[1769998506352,0.2,102.0,101.97,9.26047694]
[1769998506554,0.2,102.0,101.97,19.06687432]
[1769998506758,0.2,102.0,101.96,22.71983604]
[1769998506948,0.2,102.0,101.97,13.45870084]
[1769998507147,0.2,102.0,101.97,3.6519858]
[1769998507359,12.97311682,101.99,101.95,13.46063741]
[1769998507552,12.97311682,101.98,101.94,13.53916157]
[1769998507965,34.51375471,102.0,101.92,3.73003432]
[1769998507966,13.06095518,101.97,101.92,3.73003432]
[1769998508149,13.06095518,101.97,101.94,3.73003432]
[1769998508150,9.26047694,101.97,101.94,3.73003432]
[1769998508348,13.06095518,101.98,101.94,3.73003432]
[1769998508561,9.26047694,101.97,101.94,3.73003432]
[1769998508860,9.26047694,101.96,101.93,9.81055177]
[1769998509043,19.06676795,101.98,101.94,13.5393307]
[1769998509245,22.86606813,101.99,101.95,3.73003432]
[1769998509455,9.26047694,101.99,101.95,12.99051126]
[1769998509657,0.2,102.0,101.97,3.73003432]
[1769998510063,10.00397037,102.0,101.97,3.73003432]
[1769998510267,0.2,102.02,101.99,12.99051126]
[1769998510656,0.2,102.02,102.0,9.80392156]
[1769998510859,10.00204477,102.02,101.98,9.80509503]
[1769998511074,9.46047694,102.02,101.99,9.80483542]
[1769998511364,0.2,102.02,102.0,3.73003432]
[1769998511566,0.2,102.04,102.0,12.99051126]
[1769998511767,9.46047694,102.04,102.0,3.73003432]
[1769998512377,9.36053746,102.08,101.99,43.57751943]
[1769998512378,4.27527085,102.08,102.05,3.73003432]
[1769998512671,4.27527085,102.08,102.03,9.26047694]
[1769998512672,0.2,102.11,102.08,3.73003432]
[1769998513172,9.26047694,102.14,102.1,3.73003432]
[1769998513354,9.26047694,102.17,102.12,3.73003432]
[1769998513554,9.26047694,102.17,102.13,3.73003432]
[1769998513750,3.80047824,102.18,102.11,3.73003432]
[1769998513952,9.26047694,102.15,102.12,3.73003432]
[1769998514366,9.26047694,102.16,102.12,3.73003432]
[1769998514574,9.26047694,102.15,102.12,3.73003432]
[1769998514770,9.26047694,102.16,102.13,3.73003432]
[1769998514996,9.26047694,102.17,102.13,3.73003432]
[1769998515982,9.26047694,102.19,102.14,3.73003432]
[1769998516290,9.26047694,102.21,102.17,3.73003432]
[1769998516448,9.26047694,102.23,102.18,3.73003432]
[1769998516768,5.07786206,102.26,102.21,9.26047694]
[1769998516950,9.57427484,102.27,102.22,9.26047694]
[1769998517150,9.57427484,102.27,102.21,9.26047694]
[1769998517351,9.26047694,102.26,102.2,9.26047694]
[1769998517574,9.26047694,102.24,102.19,43.51040354]
[1769998517780,13.89234916,102.27,102.18,9.78633558]
[1769998517957,13.37475308,102.27,102.21,9.26047694]
[1769998518158,0.3137979,102.27,102.22,9.26047694]
[1769998518358,0.3137979,102.27,102.23,9.26047694]
[1769998518560,9.57427484,102.27,102.23,3.73003432]
[1769998518778,9.26047694,102.26,102.22,3.73003432]
[1769998518988,0.3137979,102.27,102.24,3.73003432]
[1769998519180,59.03626485,102.33,102.23,9.26047694]
[1769998519181,9.26047694,102.32,102.27,3.73003432]
[1769998519481,19.42937498,102.33,102.28,12.99051126]
[1769998519689,9.26047694,102.33,102.28,12.99051126]
[1769998519886,13.06095518,102.31,102.26,3.73003432]
[1769998520187,9.26047694,102.28,102.24,3.73003432]
[1769998520382,9.26047694,102.29,102.24,3.73003432]
[1769998520585,9.26047694,102.29,102.25,3.73003432]
[1769998520877,3.80047824,102.36,102.29,3.73003432]
[1769998521083,9.26047694,102.35,102.31,3.73003432]
[1769998521469,9.26047694,102.37,102.33,3.73003432]
[1769998521787,19.02610194,102.4,102.35,3.73003432]
[1769998521980,9.26047694,102.38,102.33,12.99051126]
[1769998522180,9.26047694,102.37,102.33,3.73003432]
[1769998522387,9.765625,102.4,102.35,3.73003432]
[1769998522682,38.07706918,102.41,102.34,12.99051126]
[1769998522881,0.1,102.41,102.37,3.73003432]
[1769998523088,0.1,102.41,102.37,12.99051126]
[1769998523386,0.1,102.41,102.39,3.73003432]
[1769998523602,0.1,102.42,102.4,3.73003432]
[1769998523776,19.27457306,102.47,102.41,12.99051126]
[1769998524088,3.94744852,102.54,102.46,9.26047694]
[1769998524287,0.1,102.55,102.51,14.34342883]
[1769998524488,6.21967285,102.58,102.54,9.26047694]
[1769998524692,5.09596068,102.64,102.54,9.26047694]
[1769998524693,9.36047694,102.63,102.56,9.26047694]
[1769998524896,13.20792546,102.62,102.57,9.26047694]
[1769998525074,0.1,102.63,102.6,9.26047694]
[1769998525276,0.1,102.63,102.56,34.12622178]
[1769998525585,0.1,102.63,102.61,9.26047694]
[1769998525882,0.1,102.63,102.6,9.26047694]
[1769998526067,4.04744852,102.63,102.58,0.14216157]
[1769998526389,3.94744852,102.61,102.56,9.75024675]
[1769998526567,24.50193644,102.63,102.56,9.7496257]
[1769998526766,4.04744852,102.63,102.58,14.65803229]
[1769998526980,28.44960615,102.63,102.54,36.93229178]
[1769998527186,14.65803229,102.62,102.56,14.65803229]
[1769998527366,3.94744852,102.62,102.56,14.65803229]
[1769998527569,4.04744852,102.66,102.58,0.14216157]
[1769998527889,18.60548081,102.7,102.65,14.65803229]
[1769998528071,1e-08,102.68,102.67,14.65803229]
[1769998528274,14.65803229,102.74,102.67,14.65803229]
[1769998528582,4.14744852,102.75,102.67,14.65803229]
[1769998528583,0.2,102.75,102.71,14.65803229]
[1769998528783,0.1,102.76,102.73,14.65803229]
[1769998528988,1e-08,102.76,102.74,14.65803229]
[1769998529167,1e-08,102.76,102.72,34.07320872]
[1769998529488,1e-08,102.76,102.72,9.73520249]
[1769998529691,1e-08,102.76,102.61,48.43871545]
[1769998530008,0.1,102.8,102.75,19.21762628]
[1769998530189,0.1,102.8,102.76,14.65803229]
[1769998530390,14.65803229,102.78,102.72,14.94235543]
[1769998530589,18.60548081,102.76,102.7,14.65803229]
[1769998530893,14.65803229,102.75,102.69,14.65803229]
[1769998531193,3.94744852,102.74,102.68,9.73899493]
[1769998531388,14.65803229,102.71,102.67,9.73985537]
[1769998531590,9.73276223,102.75,102.64,9.741845]
[1769998531591,14.65803229,102.68,102.64,9.741845]
[1769998531890,14.65803229,102.66,102.63,9.74371988]
[1769998532094,14.65803229,102.64,102.6,9.74645561]
[1769998532276,14.65803229,102.63,102.59,9.74743495]
[1769998532587,14.65803229,102.63,102.57,14.65803229]
[1769998532776,14.65803229,102.63,102.58,9.74848898]
[1769998532971,3.94744852,102.65,102.58,9.74848898]
[1769998533179,14.65803229,102.62,102.58,9.74848898]
[1769998533488,14.65803229,102.61,102.55,14.65803229]
[1769998533700,14.65803229,102.59,102.54,27.12]
[1769998533885,14.65803229,102.58,102.52,14.68054342]
[1769998534083,3.94744852,102.63,102.56,9.75016242]
[1769998534291,14.65803229,102.61,102.56,9.75016242]
[1769998534491,18.60548081,102.59,102.53,66.13894642]
[1769998534696,14.65803229,102.58,102.53,36.85308464]
[1769998534996,14.65803229,102.54,102.49,9.75691123]
[1769998535174,14.65803229,102.54,102.5,9.75570453]
[1769998535376,14.65803229,102.56,102.5,14.68878486]
[1769998535581,14.65803229,102.54,102.48,14.68878486]
[1769998535913,13.69706747,102.57,102.46,14.68878486]
[1769998535914,14.65803229,102.52,102.46,14.68878486]
[1769998536203,3.94744852,102.56,102.49,0.03075257]
[1769998536383,14.65803229,102.55,102.49,14.68878486]
[1769998536587,18.60548081,102.54,102.47,48.84915727]
[1769998536876,4.27527085,102.58,102.45,0.03480243]
[1769998536877,14.65803229,102.51,102.45,0.03480243]
[1769998537080,14.65803229,102.5,102.45,0.03480243]
[1769998537597,14.65803229,102.5,102.45,9.79546704]
[1769998538113,14.65803229,102.49,102.43,66.20587718]
[1769998538312,14.65803229,102.49,102.44,14.65803229]
[1769998538478,14.65803229,102.48,102.44,9.76171422]
[1769998538672,18.60548081,102.49,102.45,9.76075557]
[1769998538896,18.60548081,102.47,102.41,14.65803229]
[1769998539096,14.65803229,102.46,102.4,14.65803229]
[1769998539392,28.36261292,102.49,102.43,14.65803229]
[1769998540200,3.94744852,102.51,102.46,14.65803229]
[1769998540378,18.60548081,102.51,102.45,14.65803229]
[1769998540705,3.94744852,102.49,102.44,14.65803229]
[1769998541003,18.60548081,102.48,102.43,9.76271353]
[1769998541202,14.65803229,102.47,102.42,9.76363423]
[1769998541409,18.60548081,102.48,102.42,24.47980974]
[1769998541581,18.60548081,102.47,102.42,9.76363423]
[1769998541781,14.65803229,102.45,102.41,27.1]
[1769998542292,3.94744852,102.45,102.41,27.1]
[1769998542496,18.60548081,102.43,102.39,9.76635719]
[1769998542681,3.94744852,102.42,102.39,9.76635719]
[1769998543103,3.94744852,102.42,102.38,9.76753272]
[1769998543599,14.65803229,102.43,102.38,24.42556501]
[1769998543896,3.94744852,102.43,102.38,24.42556501]
[1769998544099,18.60548081,102.42,102.37,9.76825799]
[1769998544597,3.94744852,102.42,102.37,9.76825799]
[1769998544774,18.60548081,102.42,102.37,9.76825799]
[1769998544978,4.27527085,102.47,102.37,9.76825799]
[1769998544979,3.94744852,102.46,102.38,14.65803229]
[1769998545185,3.94744852,102.44,102.39,24.42461105]
[1769998545396,3.94744852,102.46,102.41,14.65803229]
[1769998545777,3.94744852,102.45,102.4,14.94235543]
[1769998545981,3.94744852,102.44,102.39,48.84105796]
[1769998546204,18.60548081,102.46,102.4,14.65803229]
[1769998546400,18.64946405,102.46,102.4,14.70201553]
[1769998547002,18.64946405,102.43,102.39,34.18302567]
[1769998547305,3.94744852,102.43,102.39,34.18302567]
[1769998547594,14.70201553,102.44,102.39,34.18302567]
[1769998547782,18.64946405,102.45,102.39,48.8850412]
[1769998548193,18.64946405,102.45,102.39,34.18302567]
[1769998548404,18.64946405,102.44,102.39,34.18302567]
[1769998548701,3.94744852,102.44,102.39,48.8850412]
[1769998549096,18.64946405,102.44,102.39,34.18302567]
[1769998549305,3.94744852,102.41,102.38,9.76721657]
[1769998549724,3.94744852,102.48,102.4,0.09025666]
[1769998550006,3.94744852,102.47,102.41,18.97728638]
[1769998550384,3.94744852,102.43,102.38,76.0080639]
[1769998550696,18.64946405,102.43,102.38,9.76721657]
[1769998550901,18.64946405,102.43,102.38,34.18604837]
[1769998551199,3.94744852,102.43,102.38,48.8880639]
[1769998551910,3.94744852,102.45,102.39,14.98633867]
[1769998552103,18.64946405,102.45,102.39,14.98633867]
[1769998552485,3.94744852,102.45,102.4,14.70201553]
[1769998553304,3.94744852,102.43,102.38,80.28333475]
[1769998553617,44.26201553,102.6,102.44,3.93161283]
[1769998553807,14.70201553,102.53,102.47,14.70201553]
[1769998553986,14.70201553,102.48,102.41,8.20688368]
[1769998554183,14.70201553,102.47,102.41,22.90889921]
[1769998554685,14.70201553,102.49,102.43,18.63362836]
[1769998554884,14.70201553,102.5,102.44,14.70201553]
[1769998555093,14.70201553,102.49,102.43,45.75362836]
[1769998555291,14.70201553,102.49,102.44,9.76181179]
[1769998555490,9.75719675,102.49,102.44,9.76181179]
[1769998555703,3.81348013,102.48,102.43,28.39599732]
[1769998555889,18.51549566,102.5,102.44,14.70201553]
[1769998556091,3.81348013,102.49,102.44,14.70201553]
[1769998556285,18.51549566,102.49,102.43,79.92290935]
[1769998556703,3.81348013,102.48,102.43,65.22089382]
[1769998556910,18.51549566,102.48,102.43,65.22089382]
[1769998557097,18.51549566,102.48,102.43,36.88236896]
[1769998557412,3.81348013,102.46,102.41,4.27527085]
[1769998557618,34.15354888,102.48,102.36,18.63362836]
[1769998557619,14.70201553,102.42,102.36,18.63362836]
[1769998557902,3.81348013,102.43,102.37,28.40211522]
[1769998558109,3.81348013,102.43,102.38,14.70201553]
[1769998558307,14.70201553,102.44,102.38,18.63362836]
[1769998558611,18.51549566,102.44,102.38,18.63362836]
[1769998558804,18.51549566,102.44,102.38,43.05160971]
[1769998559004,14.70201553,102.43,102.38,43.05160971]
[1769998559205,18.51549566,102.44,102.38,43.05160971]
[1769998559389,18.51549566,102.43,102.38,28.34959418]
[1769998559712,14.70201553,102.42,102.38,24.41798135]
[1769998559917,18.51549566,102.43,102.38,39.11999688]
[1769998560789,18.51549566,102.43,102.38,9.76753272]
[1769998560790,3.81348013,102.41,102.38,9.76753272]
[1769998560992,14.70201553,102.42,102.38,9.76753272]
[1769998561498,18.51549566,102.42,102.38,9.76753272]
[1769998561903,3.81348013,102.42,102.38,34.18636452]
[1769998562295,3.81348013,102.42,102.38,9.76753272]
[1769998563094,3.81348013,102.42,102.38,34.18636452]
[1769998563912,18.51549566,102.44,102.38,79.93999288]
[1769998564099,18.51549566,102.43,102.38,65.23797735]
[1769998564493,3.81348013,102.43,102.38,79.93999288]
[1769998564694,3.81348013,102.43,102.39,14.70201553]
[1769998564896,3.81348013,102.43,102.4,9.765625]
[1769998565315,3.81348013,102.41,102.38,27.12]
[1769998565611,3.81348013,102.41,102.38,36.88676901]
[1769998565816,3.81348013,102.38,102.35,9.7703957]
[1769998566193,18.51549566,102.37,102.34,161.00031101]
[1769998566398,1.47165119,102.37,102.34,170.77163935]
[1769998566599,14.70201553,102.4,102.34,189.40526771]
[1769998567013,24.39881776,102.47,102.39,3.93161283]
[1769998567223,24.39881776,102.47,102.39,14.70201553]
[1769998567397,14.70201553,102.44,102.38,45.75362836]
[1769998567589,24.39881776,102.47,102.4,18.66725461]
[1769998567795,14.70201553,102.46,102.4,18.66725461]
[1769998568103,14.70201553,102.48,102.42,14.70201553]
[1769998568303,14.70201553,102.48,102.41,3.96523908]
[1769998568304,14.70201553,102.48,102.43,14.70201553]
[1769998568503,4.0113059,102.48,102.43,14.70201553]
[1769998568806,18.71332143,102.47,102.41,45.78725461]
[1769998569010,18.71332143,102.44,102.41,36.88464432]
[1769998569405,18.71332143,102.46,102.41,40.8498834]
[1769998569611,28.47178132,102.48,102.42,18.66725461]
[1769998569797,18.71332143,102.48,102.43,14.70201553]
[1769998569994,18.71332143,102.48,102.42,18.66725461]
[1769998570201,28.47133373,102.48,102.42,18.66725461]
[1769998570417,13.17280093,102.48,102.43,9.16149503]
[1769998570619,4.0113059,102.47,102.42,13.12673411]
[1769998570809,13.17280093,102.47,102.42,13.12673411]
[1769998571014,13.17280093,102.49,102.44,34.16634127]
[1769998571326,9.16149503,102.49,102.44,47.29307538]
[1769998571506,13.17280093,102.48,102.44,9.76181179]
[1769998571918,9.16149503,102.46,102.43,9.76260671]
[1769998572302,9.16149503,102.45,102.42,9.76346038]
[1769998572709,13.17280093,102.44,102.41,9.76383339]
[1769998573020,4.0113059,102.44,102.41,9.76467141]
[1769998573325,9.16149503,102.46,102.41,9.76467141]
[1769998573510,9.16149503,102.47,102.42,13.12673411]
[1769998573711,13.17280093,102.48,102.42,13.12673411]
[1769998573903,9.16149503,102.49,102.44,3.96523908]
[1769998574219,13.17280093,102.5,102.44,13.12673411]
[1769998574525,13.17280093,102.5,102.42,13.12673411]
[1769998574526,13.17280093,102.48,102.42,13.12673411]
[1769998574727,13.17280093,102.47,102.42,9.16149503]
[1769998574916,9.16149503,102.46,102.41,78.98267805]
[1769998575224,9.16149503,102.46,102.41,74.7074072]
[1769998575422,13.17280093,102.45,102.41,9.76467141]
[1769998575632,9.16149503,102.44,102.41,9.76467141]